fUSD/lending_fUSD_20240107
["ID","MTS","AMOUNT","RATE_DAILY","PERIOD"]
[310651468,1704636637989,-500.0,0.00022798,2]
[310651469,1704636637998,-500.0,0.00022798,2]
[310651470,1704636638008,-500.0,0.00022798,2]
[310651471,1704636638019,-509.81133893,0.00022798,2]
[310651472,1704636638029,-500.0,0.00022798,2]
[310651473,1704636638038,-500.0,0.00022798,2]
[310651474,1704636638047,-500.0,0.00022798,2]
[310651475,1704636638057,-500.0,0.00022798,2]
[310651476,1704636638066,-500.0,0.00022798,2]
[310651477,1704636638075,-512.9188882,0.00022798,2]
[310651478,1704636638085,-500.0,0.00022798,2]
[310651479,1704636638094,-500.0,0.00022798,2]
[310651480,1704636638104,-545.88,0.00022798,2]
[310651481,1704636638114,-500.0,0.00022798,2]
[310651482,1704636638124,-500.0,0.00022798,2]
[310651483,1704636638134,-500.0,0.00022798,2]
[310651484,1704636638144,-500.0,0.00022798,2]
[310651485,1704636638153,-500.0,0.00022798,2]
[310651486,1704636638162,-500.0,0.00022798,2]
[310651487,1704636638171,-500.0,0.00022798,2]
[310651488,1704636638181,-500.0,0.00022798,2]
[310651489,1704636638190,-500.0,0.00022798,2]
[310651490,1704636638199,-500.0,0.00022798,2]
[310651491,1704636638209,-500.0,0.00022798,2]
[310651493,1704636638219,-500.0,0.00022798,2]
[310651495,1704636638230,-500.0,0.00022798,2]
[310651497,1704636638240,-500.0,0.00022798,2]
[310651499,1704636638250,-500.0,0.00022798,2]
[310651501,1704636638259,-500.0,0.00022798,2]
[310651503,1704636638272,-500.0,0.00022798,2]
[310651504,1704636638281,-500.0,0.00022798,2]
[310651505,1704636638291,-500.0,0.00022798,2]
[310651506,1704636638301,-500.0,0.00022798,2]
[310651507,1704636638310,-500.0,0.00022798,2]
[310651508,1704636638319,-500.0,0.00022798,2]
[310651509,1704636638329,-504.45329015,0.00022798,2]
[310651510,1704636638338,-500.0,0.00022798,2]
[310651511,1704636638347,-505.17,0.00022798,2]
[310651512,1704636638357,-500.0,0.00022798,2]
[310651513,1704636638366,-500.0,0.00022798,2]
[310651514,1704636638375,-500.0,0.00022798,2]
[310651515,1704636638385,-500.0,0.00022798,2]
[310651516,1704636638394,-511.1579881,0.00022798,2]
[310651517,1704636638404,-500.0,0.00022798,2]
[310651518,1704636638414,-504.75526853,0.00022798,2]
[310651519,1704636638423,-500.0,0.00022798,2]
[310651520,1704636638433,-500.0,0.00022798,2]
[310651521,1704636638443,-500.0,0.00022798,2]
[310651522,1704636638452,-500.0,0.00022798,2]
[310651523,1704636638461,-514.77748726,0.00022798,2]
[310651524,1704636638471,-500.0,0.00022798,2]
[310651525,1704636638481,-500.0,0.00022798,2]
[310651526,1704636638490,-500.0,0.00022798,2]
[310651527,1704636638500,-500.0,0.00022798,2]
[310651528,1704636638509,-500.0,0.00022798,2]
[310651529,1704636638522,-500.0,0.00022798,2]
[310651530,1704636638531,-500.0,0.00022798,2]
[310651531,1704636638541,-500.0,0.00022798,2]
[310651532,1704636638550,-506.34018614,0.00022798,2]
[310651533,1704636638560,-577.02,0.00022798,2]
[310651534,1704636638570,-500.0,0.00022798,2]
[310651535,1704636638579,-500.0,0.00022798,2]
[310651536,1704636638589,-520.18091772,0.00022798,2]
[310651537,1704636638599,-500.0,0.00022798,2]
[310651538,1704636638609,-500.0,0.00022798,2]
[310651539,1704636638619,-500.0,0.00022798,2]
[310651540,1704636638628,-500.0,0.00022798,2]
[310651541,1704636638638,-500.0,0.00022798,2]
[310651542,1704636638647,-500.0,0.00022798,2]
[310651543,1704636638657,-500.0,0.00022798,2]
[310651544,1704636638666,-500.0,0.00022798,2]
[310651545,1704636638676,-500.0,0.00022798,2]
[310651546,1704636638685,-500.0,0.00022798,2]
[310651547,1704636638695,-500.0,0.00022798,2]
[310651548,1704636638704,-500.0,0.00022798,2]
[310651549,1704636638713,-500.0,0.00022798,2]
[310651550,1704636638722,-500.0,0.00022798,2]
[310651551,1704636638732,-500.0,0.00022798,2]
[310651552,1704636638742,-500.0,0.00022798,2]
[310651553,1704636638751,-500.0,0.00022798,2]
[310651554,1704636638760,-500.0,0.00022798,2]
[310651555,1704636638771,-500.0,0.00022798,2]
[310651556,1704636638784,-509.48315468,0.00022798,2]
[310651557,1704636638793,-500.0,0.00022798,2]
[310651558,1704636638803,-500.0,0.00022798,2]
[310651559,1704636638812,-538.77714869,0.00022798,2]
[310651560,1704636638822,-500.0,0.00022798,2]
[310651561,1704636638832,-500.0,0.00022798,2]
[310651562,1704636638841,-500.0,0.00022798,2]
[310651563,1704636638851,-500.0,0.00022798,2]
[310651564,1704636638860,-500.0,0.00022798,2]
[310651565,1704636638869,-500.0,0.00022798,2]
[310651566,1704636638878,-507.85416275,0.00022798,2]
[310651567,1704636638887,-537.63659629,0.00022798,2]
[310651568,1704636638897,-508.62929757,0.00022798,2]
[310651569,1704636638906,-533.78,0.00022798,2]
[310651570,1704636638915,-540.59886655,0.00022798,2]
[310651571,1704636638925,-517.0980182,0.00022798,2]
[310651572,1704636638934,-529.75,0.00022798,2]
[310651573,1704636638943,-500.0,0.00022798,2]
[310651574,1704636638952,-500.0,0.00022798,2]
[310651575,1704636638962,-500.0,0.00022798,2]
[310651576,1704636638973,-500.0,0.00022798,2]
[310651577,1704636638984,-500.0,0.00022798,2]
[310651578,1704636638994,-500.0,0.00022798,2]
[310651579,1704636639004,-500.0,0.00022798,2]
[310651580,1704636639015,-500.0,0.00022798,2]
[310651581,1704636639027,-500.0,0.00022798,2]
[310651582,1704636639037,-500.0,0.00022798,2]
[310651583,1704636639048,-500.0,0.00022798,2]
[310651584,1704636639058,-500.0,0.00022798,2]
[310651585,1704636639069,-500.0,0.00022798,2]
[310651586,1704636639079,-500.0,0.00022798,2]
[310651587,1704636639089,-500.0,0.00022798,2]
[310651588,1704636639099,-500.0,0.00022798,2]
[310651589,1704636639109,-500.0,0.00022798,2]
[310651590,1704636639118,-500.0,0.00022798,2]
[310651591,1704636639128,-500.0,0.00022798,2]
[310651592,1704636639138,-500.0,0.00022798,2]
[310651593,1704636639147,-500.0,0.00022798,2]
[310651594,1704636639157,-500.0,0.00022798,2]
[310651595,1704636639166,-500.0,0.00022798,2]
[310651596,1704636639177,-500.0,0.00022798,2]
[310651597,1704636639188,-508.36082077,0.00022798,2]
[310651598,1704636639199,-500.0,0.00022798,2]
[310651599,1704636639208,-500.0,0.00022798,2]
[310651600,1704636639217,-500.0,0.00022798,2]
[310651601,1704636639228,-500.0,0.00022798,2]
[310651602,1704636639237,-500.0,0.00022798,2]
[310651603,1704636639246,-500.0,0.00022798,2]
[310651604,1704636639256,-500.0,0.00022798,2]
[310651605,1704636639266,-500.0,0.00022798,2]
[310651606,1704636639275,-500.0,0.00022798,2]
[310651607,1704636639284,-500.0,0.00022798,2]
[310651608,1704636639294,-508.10140848,0.00022798,2]
[310651609,1704636639303,-500.0,0.00022798,2]
[310651610,1704636639313,-500.0,0.00022798,2]
[310651611,1704636639322,-512.89387384,0.00022798,2]
[310651612,1704636639331,-500.0,0.00022798,2]
[310651613,1704636639341,-500.0,0.00022798,2]
[310651614,1704636639350,-504.09430621,0.00022798,2]
[310651615,1704636639359,-500.0,0.00022798,2]
[310651616,1704636639368,-320.49673435,0.00022798,2]
[310651617,1704636639378,-500.0,0.00022798,2]
[310651618,1704636639387,-500.0,0.00022798,2]
[310651619,1704636639397,-508.05502305,0.00022798,2]
[310651620,1704636639406,-510.56112753,0.00022798,2]
[310651621,1704636639415,-507.75859942,0.00022798,2]
[310651622,1704636639425,-500.0,0.00022798,2]
[310651623,1704636639434,-500.0,0.00022798,2]
[310651624,1704636639444,-500.0,0.00022798,2]
[310651625,1704636639453,-485.66665445,0.00022798,2]
[310651626,1704636639462,-500.0,0.00022798,2]
[310651627,1704636639472,-500.0,0.00022798,2]
[310651628,1704636639482,-505.31370254,0.00022798,2]
[310651629,1704636639491,-500.0,0.00022798,2]
[310651630,1704636639500,-518.43368926,0.00022798,2]
[310651631,1704636639509,-500.0,0.00022798,2]
[310651632,1704636639568,-500.0,0.00022798,2]
[310651633,1704636639578,-500.0,0.00022798,2]
[310651634,1704636639588,-509.1456977,0.00022798,2]
[310651635,1704636639597,-509.12630422,0.00022798,2]
[310651636,1704636639609,-500.0,0.00022798,2]
[310651637,1704636639618,-500.0,0.00022798,2]
[310651638,1704636639628,-500.0,0.00022798,2]
[310651639,1704636639637,-511.0735983,0.00022798,2]
[310651640,1704636639646,-500.0,0.00022798,2]
[310651641,1704636639657,-500.0,0.00022798,2]
[310651642,1704636639667,-500.0,0.00022798,2]
[310651643,1704636639678,-500.0,0.00022798,2]
[310651644,1704636639687,-505.96997917,0.00022798,2]
[310651645,1704636639698,-500.0,0.00022798,2]
[310651646,1704636639717,-500.0,0.00022798,2]
[310651647,1704636639726,-500.0,0.00022798,2]
[310651648,1704636639736,-500.0,0.00022798,2]
[310651649,1704636639747,-500.0,0.00022798,2]
[310651650,1704636639757,-506.18453396,0.00022798,2]
[310651651,1704636639767,-500.0,0.00022798,2]
[310651652,1704636639777,-500.0,0.00022798,2]
[310651653,1704636639790,-254.22015427,0.00022798,2]
[310651654,1704636639800,-500.0,0.00022798,2]
[310651655,1704636639810,-500.0,0.00022798,2]
[310651656,1704636639820,-500.0,0.00022798,2]
[310651657,1704636639830,-500.0,0.00022798,2]
[310651658,1704636639839,-500.0,0.00022798,2]
[310651660,1704636639848,-500.0,0.00022798,2]
[310651662,1704636639857,-506.00270195,0.00022798,2]
[310651664,1704636639867,-500.0,0.00022798,2]
[310651666,1704636639876,-500.0,0.00022798,2]
[310651668,1704636639886,-500.0,0.00022798,2]
[310651670,1704636639897,-503.37410015,0.00022798,2]
[310651673,1704636639906,-500.0,0.00022798,2]
[310651676,1704636639915,-505.80660753,0.00022798,2]
[310651677,1704636639924,-500.0,0.00022798,2]
[310651678,1704636639932,-500.0,0.00022798,2]
[310651679,1704636639941,-500.0,0.00022798,2]
[310651680,1704636639951,-524.34346233,0.00022798,2]
[310651681,1704636639964,-500.0,0.00022798,2]
[310651682,1704636639973,-503.75968191,0.00022798,2]
[310651683,1704636639983,-507.83806347,0.00022798,2]
[310651684,1704636639993,-500.0,0.00022798,2]
[310651685,1704636640006,-500.0,0.00022798,2]
[310651686,1704636640016,-500.0,0.00022798,2]
[310651687,1704636640026,-500.0,0.00022798,2]
[310651688,1704636640035,-500.0,0.00022798,2]
[310651689,1704636640046,-506.12854221,0.00022798,2]
[310651690,1704636640056,-582.57,0.00022798,2]
[310651691,1704636640065,-514.89704856,0.00022798,2]
[310651692,1704636640075,-500.0,0.00022798,2]
[310651693,1704636640086,-500.0,0.00022798,2]
[310651694,1704636640096,-500.0,0.00022798,2]
[310651695,1704636640106,-500.0,0.00022798,2]
[310651696,1704636640116,-500.0,0.00022798,2]
[310651697,1704636640127,-500.0,0.00022798,2]
[310651698,1704636640136,-505.62190683,0.00022798,2]
[310651699,1704636640145,-500.0,0.00022798,2]
[310651700,1704636640154,-500.0,0.00022798,2]
[310651701,1704636640163,-500.0,0.00022798,2]
[310651702,1704636640172,-500.0,0.00022798,2]
[310651703,1704636640182,-508.47140723,0.00022798,2]
[310651704,1704636640191,-517.13352058,0.00022798,2]
[310651705,1704636640200,-500.0,0.00022798,2]
[310651706,1704636640209,-500.0,0.00022798,2]
[310651707,1704636640219,-500.0,0.00022798,2]
[310651708,1704636640228,-505.96237911,0.00022798,2]
[310651709,1704636640238,-508.15883726,0.00022798,2]
[310651710,1704636640247,-505.7200588,0.00022798,2]
[310651711,1704636640256,-507.12089612,0.00022798,2]
[310651712,1704636640267,-500.0,0.00022798,2]
[310651713,1704636640276,-519.61483035,0.00022798,2]
[310651714,1704636640285,-500.0,0.00022798,2]
[310651715,1704636640294,-500.0,0.00022798,2]
[310651716,1704636640303,-500.0,0.00022798,2]
[310651717,1704636640313,-500.0,0.00022798,2]
[310651718,1704636640322,-553.10868348,0.00022798,2]
[310651719,1704636640331,-504.28944502,0.00022798,2]
[310651720,1704636640340,-500.0,0.00022798,2]
[310651721,1704636640350,-500.0,0.00022798,2]
[310651722,1704636640359,-500.0,0.00022798,2]
[310651723,1704636640369,-500.0,0.00022798,2]
[310651724,1704636640378,-500.0,0.00022798,2]
[310651725,1704636640388,-500.0,0.00022798,2]
[310651726,1704636640398,-500.0,0.00022798,2]
[310651727,1704636640407,-500.0,0.00022798,2]
[310651728,1704636640417,-513.80686166,0.00022798,2]
[310651729,1704636640426,-500.0,0.00022798,2]
[310651730,1704636640437,-504.99972845,0.00022798,2]
[310651731,1704636640448,-500.0,0.00022798,2]
[310651732,1704636640459,-500.0,0.00022798,2]
[310651733,1704636640468,-503.98264818,0.00022798,2]
[310651734,1704636640478,-509.18870978,0.00022798,2]
[310651735,1704636640487,-500.0,0.00022798,2]
[310651736,1704636640497,-500.0,0.00022798,2]
[310651737,1704636640506,-500.0,0.00022798,2]
[310651738,1704636640516,-500.0,0.00022798,2]
[310651739,1704636640526,-500.0,0.00022798,2]
[310651740,1704636640537,-500.0,0.00022798,2]
[310651741,1704636640547,-500.0,0.00022798,2]
[310651742,1704636640556,-500.0,0.00022798,2]
[310651743,1704636640565,-500.0,0.00022798,2]
[310651744,1704636640574,-500.0,0.00022798,2]
[310651745,1704636640583,-501.18020897,0.00022798,2]
[310651746,1704636640592,-500.0,0.00022798,2]
[310651747,1704636640601,-500.0,0.00022798,2]
[310651748,1704636640610,-512.25229253,0.00022798,2]
[310651749,1704636640620,-500.0,0.00022798,2]
[310651750,1704636640629,-505.51491159,0.00022798,2]
[310651751,1704636640638,-507.14158685,0.00022798,2]
[310651752,1704636640647,-1500.0,0.000228,2]
[310651753,1704636640656,-150.0,0.00022803,2]
[310651754,1704636640665,-1500.0,0.00022807,2]
[310651755,1704636640674,-150.0,0.00022809,2]
[310651756,1704636640683,-200.0,0.00022816,2]
[310651757,1704636640693,-800.0,0.00022816,2]
[310651758,1704636640702,-636.74,0.00022816,2]
[310651759,1704636640711,-510.66,0.00022816,2]
[310651760,1704636640720,-1500.0,0.00022821,2]
[310651761,1704636640730,-150.0,0.00022824,2]
[310651762,1704636640739,-1500.0,0.00022824,2]
[310651763,1704636640748,-150.0,0.00022831,2]
[310651764,1704636640758,-2918.32,0.00022839,2]
[310651765,1704636640768,-150.0,0.00022841,2]
[310651766,1704636640780,-150.0,0.00022849,2]
[310651767,1704636640789,-351.44104708,0.00022858,2]
[310651768,1704636640798,-150.0,0.00022859,2]
[310651769,1704636640810,-7114.63014946,0.0002286,2]
[310651770,1704636640820,-1500.0,0.00022865,2]
[310651771,1704636640831,-241.01,0.00022868,2]
[310651772,1704636640841,-1500.0,0.00022871,2]
[310651773,1704636640850,-150.0,0.00022875,2]
[310651774,1704636640859,-2533.14,0.00022888,2]
[310651775,1704636640870,-440.09,0.00022888,2]
[310651776,1704636640880,-500.0,0.00022897,2]
[310651777,1704636640891,-500.0,0.00022897,2]
[310651778,1704636640900,-718.08,0.00022897,2]
[310651779,1704636640909,-641.41,0.00022897,2]
[310651780,1704636640918,-500.0,0.00022897,2]
[310651781,1704636640927,-500.0,0.00022897,2]
[310651782,1704636640937,-589.37,0.00022897,2]
[310651783,1704636640945,-494.42,0.00022897,2]
[310651784,1704636640954,-639.94,0.00022897,2]
[310651785,1704636640963,-500.0,0.00022897,2]
[310651786,1704636640972,-500.0,0.00022897,2]
[310651787,1704636640981,-500.0,0.00022897,2]
[310651788,1704636640990,-500.0,0.00022897,2]
[310651789,1704636640999,-500.0,0.00022897,2]
[310651790,1704636641008,-500.0,0.00022897,2]
[310651791,1704636641019,-500.0,0.00022897,2]
[310651792,1704636641028,-246.08,0.00022897,2]
[310651793,1704636641037,-500.0,0.00022897,2]
[310651794,1704636641046,-296.83,0.00022897,2]
[310651795,1704636641056,-500.0,0.00022897,2]
[310651796,1704636641065,-516.61,0.00022897,2]
[310651797,1704636641074,-500.0,0.00022897,2]
[310651798,1704636641083,-502.75,0.00022897,2]
[310651799,1704636641092,-754.89,0.00022897,2]
[310651800,1704636641101,-484.78,0.00022897,2]
[310651801,1704636641110,-500.0,0.00022897,2]
[310651802,1704636641119,-500.0,0.00022897,2]
[310651803,1704636641129,-606.47,0.00022897,2]
[310651804,1704636641139,-393.03,0.00022897,2]
[310651805,1704636641148,-500.0,0.00022897,2]
[310651806,1704636641157,-500.0,0.00022897,2]
[310651807,1704636641167,-500.0,0.00022897,2]
[310651808,1704636641177,-500.0,0.00022897,2]
[310651809,1704636641186,-500.0,0.00022897,2]
[310651810,1704636641196,-893.6,0.00022897,2]
[310651811,1704636641205,-500.0,0.00022897,2]
[310651812,1704636641215,-500.0,0.00022897,2]
[310651813,1704636641225,-269.59,0.00022898,2]
[310651814,1704636641235,-500.0,0.00022898,2]
[310651815,1704636641244,-525.27755831,0.00022898,2]
[310651816,1704636641255,-500.0,0.00022898,2]
[310651817,1704636641266,-500.0,0.00022898,2]
[310651818,1704636641276,-500.0,0.00022898,2]
[310651819,1704636641287,-500.0,0.00022898,2]
[310651820,1704636641296,-500.0,0.00022898,2]
[310651821,1704636641306,-536.39635212,0.00022898,2]
[310651822,1704636641316,-500.0,0.00022898,2]
[310651823,1704636641327,-500.0,0.00022898,2]
[310651824,1704636641337,-500.0,0.00022898,2]
[310651825,1704636641347,-517.77058396,0.00022898,2]
[310651826,1704636641357,-500.0,0.00022898,2]
[310651827,1704636641367,-515.4286835,0.00022898,2]
[310651828,1704636641377,-517.3,0.00022898,2]
[310651829,1704636641388,-500.0,0.00022898,2]
[310651830,1704636641399,-620.36,0.00022898,2]
[310651831,1704636641409,-500.0,0.00022898,2]
[310651832,1704636641418,-500.0,0.00022898,2]
[310651833,1704636641429,-500.0,0.00022898,2]
[310651834,1704636641439,-519.51250322,0.00022898,2]
[310651836,1704636641449,-500.0,0.00022898,2]
[310651838,1704636641459,-511.39431041,0.00022898,2]
[310651840,1704636641469,-505.70017347,0.00022898,2]
[310651842,1704636641478,-500.0,0.00022898,2]
[310651843,1704636641488,-511.66411125,0.00022898,2]
[310651844,1704636641498,-505.71638653,0.00022898,2]
[310651846,1704636641508,-500.0,0.00022898,2]
[310651848,1704636641520,-504.0881173,0.00022898,2]
[310651850,1704636641531,-514.76039706,0.00022898,2]
[310651852,1704636641543,-553.25241419,0.00022898,2]
[310651854,1704636641554,-504.51389895,0.00022898,2]
[310651856,1704636641565,-505.83742251,0.00022898,2]
[310651858,1704636641577,-500.0,0.00022898,2]
[310651860,1704636641588,-510.61616215,0.00022898,2]
[310651862,1704636641598,-501.06224854,0.00022898,2]
[310651864,1704636641610,-508.25308477,0.00022898,2]
[310651866,1704636641621,-486.0,0.00022898,2]
[310651869,1704636641637,-503.73535752,0.00022898,2]
[310651871,1704636641648,-403.19488267,0.00022898,2]
[310651873,1704636641659,-514.87384767,0.00022898,2]
[310651875,1704636641670,-548.55674699,0.00022898,2]
[310651877,1704636641681,-507.41141106,0.00022898,2]
[310651879,1704636641692,-500.0,0.00022898,2]
[310651881,1704636641703,-506.77808396,0.00022898,2]
[310651883,1704636641714,-516.13956875,0.00022898,2]
[310651885,1704636641725,-500.0,0.00022898,2]
[310651887,1704636641740,-518.46367046,0.00022898,2]
[310651889,1704636641751,-505.15907874,0.00022898,2]
[310651891,1704636641762,-503.41899844,0.00022898,2]
[310651894,1704636641779,-500.0,0.00022898,2]
[310651896,1704636641795,-234.38149422,0.00022898,2]
[310651898,1704636641806,-507.60262913,0.00022898,2]
[310651900,1704636641817,-500.0,0.00022898,2]
[310651902,1704636641828,-514.15688073,0.00022898,2]
[310651904,1704636641838,-514.65087757,0.00022898,2]
[310651906,1704636641848,-500.0,0.00022898,2]
[310651908,1704636641858,-508.60771482,0.00022898,2]
[310651910,1704636641868,-500.0,0.00022898,2]
[310651912,1704636641878,-513.45779259,0.00022898,2]
[310651914,1704636641888,-510.17193404,0.00022898,2]
[310651916,1704636641898,-528.22,0.00022898,2]
[310651918,1704636641908,-500.0,0.00022898,2]
[310651919,1704636641917,-500.0,0.00022898,2]
[310651920,1704636641927,-505.57391433,0.00022898,2]
[310651921,1704636641938,-539.71340414,0.00022898,2]
[310651922,1704636641947,-506.28757426,0.00022898,2]
[310651923,1704636641962,-500.0,0.00022898,2]
[310651924,1704636641980,-509.51307776,0.00022898,2]
[310651925,1704636641990,-510.69663396,0.00022898,2]
[310651926,1704636642001,-505.0783187,0.00022898,2]
[310651927,1704636642012,-511.73975609,0.00022898,2]
[310651928,1704636642029,-500.0,0.00022898,2]
[310651929,1704636642039,-500.0,0.00022898,2]
[310651930,1704636642050,-500.0,0.00022898,2]
[310651931,1704636642061,-586.69564798,0.00022898,2]
[310651932,1704636642071,-264.42,0.00022898,2]
[310651933,1704636642082,-500.0,0.00022898,2]
[310651934,1704636642092,-409.72,0.00022898,2]
[310651935,1704636642102,-500.0,0.00022898,2]
[310651936,1704636642111,-239.43,0.00022898,2]
[310651937,1704636642121,-500.0,0.00022898,2]
[310651938,1704636642131,-500.0,0.00022898,2]
[310651939,1704636642141,-411.51,0.00022898,2]
[310651940,1704636642150,-500.0,0.00022898,2]
[310651941,1704636642160,-538.57,0.00022898,2]
[310651942,1704636642170,-500.0,0.00022898,2]
[310651943,1704636642180,-500.0,0.00022898,2]
[310651944,1704636642191,-500.0,0.00022898,2]
[310651945,1704636642202,-500.0,0.00022898,2]
[310651946,1704636642213,-609.77642902,0.00022898,2]
[310651948,1704636642223,-500.0,0.00022898,2]
[310651950,1704636642234,-500.0,0.00022898,2]
[310651952,1704636642245,-500.0,0.00022898,2]
[310651955,1704636642255,-500.0,0.00022898,2]
[310651957,1704636642267,-500.0,0.00022898,2]
[310651960,1704636642278,-500.0,0.00022898,2]
[310651962,1704636642289,-500.0,0.00022898,2]
[310651964,1704636642300,-629.18,0.00022898,2]
[310651966,1704636642310,-613.6,0.00022898,2]
[310651968,1704636642320,-505.32,0.00022898,2]
[310651970,1704636642330,-224.48,0.00022898,2]
[310651972,1704636642341,-465.16,0.00022898,2]
[310651974,1704636642351,-500.0,0.00022898,2]
[310651976,1704636642362,-152.84,0.00022898,2]
[310651977,1704636642372,-351.13,0.00022898,2]
[310651979,1704636642383,-500.0,0.00022898,2]
[310651981,1704636642393,-416.93,0.00022898,2]
[310651982,1704636642403,-557.48,0.00022898,2]
[310651983,1704636642413,-500.0,0.00022898,2]
[310651985,1704636642423,-499.99,0.00022899,2]
[310651987,1704636642433,-500.0,0.00022899,2]
[310651989,1704636642444,-500.0,0.00022899,2]
[310651990,1704636642454,-500.0,0.00022899,2]
[310651991,1704636642464,-500.0,0.00022899,2]
[310651992,1704636642474,-500.0,0.00022899,2]
[310651993,1704636642484,-500.0,0.00022899,2]
[310651994,1704636642494,-500.0,0.00022899,2]
[310651995,1704636642504,-500.0,0.00022899,2]
[310651996,1704636642514,-500.0,0.00022899,2]
[310651998,1704636642528,-500.0,0.00022899,2]
[310652000,1704636642537,-500.0,0.00022899,2]
[310652002,1704636642548,-500.0,0.00022899,2]
[310652003,1704636642558,-500.0,0.00022899,2]
[310652004,1704636642568,-500.0,0.00022899,2]
[310652005,1704636642577,-283.57,0.00022899,2]
[310652006,1704636642587,-500.0,0.00022899,2]
[310652007,1704636642598,-500.0,0.00022899,2]
[310652008,1704636642608,-469.3,0.00022899,2]
[310652009,1704636642618,-718.08,0.00022899,2]
[310652010,1704636642628,-718.08,0.00022899,2]
[310652011,1704636642638,-718.08,0.00022899,2]
[310652012,1704636642648,-718.08,0.00022899,2]
[310652013,1704636642658,-718.08,0.00022899,2]
[310652014,1704636642668,-718.08,0.00022899,2]
[310652015,1704636642678,-718.08,0.00022899,2]
[310652016,1704636642688,-718.08,0.00022899,2]
[310652017,1704636642697,-582.39640711,0.00022899,2]
[310652018,1704636642990,-135.68359289,0.00022899,2]
[310652019,1704636642999,-718.08,0.00022899,2]
[310652020,1704636643008,-718.08,0.00022899,2]
[310652021,1704636643021,-718.08,0.00022899,2]
[310652022,1704636643031,-1.17640711,0.00022899,2]
[310652023,1704636643043,-716.90359289,0.00022899,2]
[310652024,1704636643053,-718.08,0.00022899,2]
[310652025,1704636643063,-718.08,0.00022899,2]
[310652026,1704636643073,-718.08,0.00022899,2]
[310652027,1704636643083,-718.08,0.00022899,2]
[310652028,1704636643093,-718.08,0.00022899,2]
[310652029,1704636643103,-718.08,0.00022899,2]
[310652030,1704636643112,-718.08,0.00022899,2]
[310652031,1704636643122,-627.49,0.00022899,2]
[310652032,1704636643132,-718.08,0.00022899,2]
[310652033,1704636643142,-718.26,0.00022899,2]
[310652034,1704636643152,-505.77,0.00022899,2]
[310652035,1704636643161,-177.24,0.00022899,2]
[310652036,1704636643172,-317.71,0.00022899,2]
[310652037,1704636643182,-234.4,0.00022899,2]
[310652038,1704636643191,-500.0,0.00022899,2]
[310652039,1704636643201,-500.0,0.00022899,2]
[310652040,1704636643211,-500.0,0.00022899,2]
[310652041,1704636643221,-500.0,0.00022899,2]
[310652042,1704636643231,-500.0,0.00022899,2]
[310652043,1704636643241,-500.0,0.00022899,2]
[310652044,1704636643251,-500.0,0.00022899,2]
[310652045,1704636643262,-500.0,0.00022899,2]
[310652046,1704636643484,-523.17,0.00022899,2]
[310652047,1704636643494,-500.0,0.00022899,2]
[310652048,1704636643503,-500.0,0.00022899,2]
[310652049,1704636643514,-500.0,0.00022899,2]